[Event "*** Titled Tuesday 3|2 Blitz"]
[Site "Chess.com"]
[Date "2015.05.05"]
[Round "2"]
[White "Rijeka1999"]
[Black "AlmirDzhumaev"]
[Result "1-0"]
[WhiteElo "2221"]
[BlackElo "2090"]
[TimeControl "180+2"]
[EndTime "11:21:23 PDT"]
[Termination "Rijeka1999 won by resignation"]

1. e4 {[%clk 0:03:01.9]} 1... e5 {[%clk 0:03:00.6]} 2. Nf3 {[%clk 0:02:55]} 2...
Nc6 {[%clk 0:03:01.4]} 3. Bc4 {[%clk 0:02:51.8]} 3... Nf6 {[%clk 0:03:02]} 4. d3
{[%clk 0:02:52.1]} 4... Bc5 {[%clk 0:03:03]} 5. O-O {[%clk 0:02:52.3]} 5... d6
{[%clk 0:03:04.1]} 6. c3 {[%clk 0:02:52.6]} 6... a6 {[%clk 0:03:03]} 7. Bb3
{[%clk 0:02:52.8]} 7... h6 {[%clk 0:03:01.4]} 8. Nbd2 {[%clk 0:02:52.7]} 8...
Be6 {[%clk 0:03:02]} 9. Re1 {[%clk 0:02:51.9]} 9... Bb6 {[%clk 0:02:54]} 10. Nf1
{[%clk 0:02:51.5]} 10... Qd7 {[%clk 0:02:51.7]} 11. Bc2 {[%clk 0:02:46.7]} 11...
Bg4 {[%clk 0:02:36.6]} 12. h3 {[%clk 0:02:46.2]} 12... Be6 {[%clk 0:02:24.1]}
13. d4 {[%clk 0:02:42.3]} 13... exd4 {[%clk 0:02:23.9]} 14. cxd4 {[%clk
0:02:41.8]} 14... d5 {[%clk 0:02:25.1]} 15. e5 {[%clk 0:02:38.5]} 15... Ng8
{[%clk 0:02:17.7]} 16. a3 {[%clk 0:02:38.6]} 16... Nge7 {[%clk 0:02:15.1]} 17.
b4 {[%clk 0:02:31.9]} 17... g5 {[%clk 0:02:12.8]} 18. N1h2 {[%clk 0:02:24.3]}
18... g4 {[%clk 0:02:11]} 19. hxg4 {[%clk 0:02:20]} 19... Bxg4 {[%clk
0:02:12.2]} 20. Nxg4 {[%clk 0:02:20.9]} 20... Qxg4 {[%clk 0:02:12.9]} 21. Bb2
{[%clk 0:02:20.2]} 21... Rg8 {[%clk 0:01:54]} 22. g3 {[%clk 0:02:19.5]} 22... h5
{[%clk 0:01:53]} 23. Nh2 {[%clk 0:01:42.6]} 23... Qh3 {[%clk 0:01:49.3]} 24. Re3
{[%clk 0:01:30]} 24... h4 {[%clk 0:01:37.8]} 25. g4 {[%clk 0:01:28]} 25... Qxe3
{[%clk 0:01:19.8]} 26. fxe3 {[%clk 0:01:26.6]} 26... O-O-O {[%clk 0:01:16.2]}
27. Qf3 {[%clk 0:01:26.8]} 27... Rdf8 {[%clk 0:01:12.1]} 28. Qf6 {[%clk
0:01:23.4]} 28... Kb8 {[%clk 0:01:08.9]} 29. Rf1 {[%clk 0:01:22.5]} 29... Ka7
{[%clk 0:01:02.8]} 30. e6 {[%clk 0:01:20.9]} 30... fxe6 {[%clk 0:00:57]} 31.
Qxf8 {[%clk 0:01:20]} 31... Rxf8 {[%clk 0:00:58.9]} 32. Rxf8 {[%clk 0:01:20]}
32... e5 {[%clk 0:01:00.8]} 33. Nf3 {[%clk 0:01:16.6]} 33... exd4 {[%clk
0:01:00.1]} 34. Nxd4 {[%clk 0:01:12.9]} 34... Nxd4 {[%clk 0:00:59.4]} 35. Bxd4
{[%clk 0:01:12.6]} 35... Bxd4 {[%clk 0:01:00.4]} 36. exd4 {[%clk 0:01:12.6]}
36... Nc6 {[%clk 0:01:02.3]} 37. Bb3 {[%clk 0:01:08.2]} 37... Nxd4 {[%clk
0:00:59.8]} 38. Bxd5 {[%clk 0:01:08.9]} 38... c6 {[%clk 0:01:00.3]} 39. Bg2
{[%clk 0:01:09.3]} 39... Ne2+ {[%clk 0:00:58.9]} 40. Kh2 {[%clk 0:01:09.9]}
40... Nd4 {[%clk 0:00:58.3]} 41. g5 {[%clk 0:01:10.8]} 41... Ne6 {[%clk
0:00:59.3]} 42. Rf5 {[%clk 0:01:11.4]} 42... Nxg5 {[%clk 0:00:56.5]} 43. Rxg5
{[%clk 0:01:11.9]} 43... Kb6 {[%clk 0:00:57.9]} 44. Rh5 {[%clk 0:01:13]} 44...
Ka7 {[%clk 0:00:58.5]} 45. Rxh4 {[%clk 0:01:14.3]} 45... Kb6 {[%clk 0:01:00.4]}
46. Rh7 {[%clk 0:01:14.6]} 46... Ka7 {[%clk 0:01:02.3]} 47. Bxc6 {[%clk
0:01:15]} 47... a5 {[%clk 0:01:01.5]} 48. Rxb7+ {[%clk 0:01:14.5]} 48... Ka8
{[%clk 0:01:00.8]} 49. Rb5+ {[%clk 0:01:15.4]} 49... Ka7 {[%clk 0:01:01.2]} 50.
Rxa5+ {[%clk 0:01:17]} 50... Kb6 {[%clk 0:01:03.1]} 51. Kg3 {[%clk 0:01:16.1]}
1-0

[Event "*** Titled Tuesday 3|2 Blitz"]
[Site "Chess.com"]
[Date "2015.05.05"]
[Round "2"]
[White "megarompa"]
[Black "GMBenjaminBok"]
[Result "1-0"]
[WhiteElo "2675"]
[BlackElo "2424"]
[TimeControl "180+2"]
[EndTime "11:21:34 PDT"]
[Termination "megarompa won by checkmate"]

1. d4 {[%clk 0:03:01.9]} 1... Nf6 {[%clk 0:03:00.3]} 2. Bg5 {[%clk 0:03:02.5]}
2... d5 {[%clk 0:02:59.9]} 3. Bxf6 {[%clk 0:03:03.1]} 3... gxf6 {[%clk
0:03:00.7]} 4. e3 {[%clk 0:03:05]} 4... c5 {[%clk 0:03:01]} 5. Nf3 {[%clk
0:03:02.8]} 5... Nc6 {[%clk 0:02:58.6]} 6. c4 {[%clk 0:02:56]} 6... cxd4 {[%clk
0:02:00.9]} 7. exd4 {[%clk 0:02:43.5]} 7... Bg4 {[%clk 0:01:56.8]} 8. Be2 {[%clk
0:02:34]} 8... e6 {[%clk 0:01:41.8]} 9. cxd5 {[%clk 0:02:31.2]} 9... Qxd5 {[%clk
0:01:42.1]} 10. Nc3 {[%clk 0:02:31.9]} 10... Bb4 {[%clk 0:01:36.7]} 11. O-O
{[%clk 0:02:32.6]} 11... Bxc3 {[%clk 0:01:37.3]} 12. bxc3 {[%clk 0:02:31.6]}
12... O-O-O {[%clk 0:01:14.3]} 13. Rb1 {[%clk 0:01:53.3]} 13... Rhg8 {[%clk
0:01:14.1]} 14. Kh1 {[%clk 0:01:51.2]} 14... Bf5 {[%clk 0:01:02]} 15. Rb2 {[%clk
0:01:43.4]} 15... Be4 {[%clk 0:01:01.6]} 16. Rg1 {[%clk 0:01:35.8]} 16... Rg7
{[%clk 0:00:59.3]} 17. Ne1 {[%clk 0:01:28.2]} 17... e5 {[%clk 0:00:46.6]} 18. f3
{[%clk 0:01:29]} 18... Bg6 {[%clk 0:00:45.6]} 19. Nc2 {[%clk 0:00:57.4]} 19...
Bxc2 {[%clk 0:00:43.8]} 20. Qxc2 {[%clk 0:00:57.7]} 20... exd4 {[%clk
0:00:43.1]} 21. cxd4 {[%clk 0:00:55.8]} 21... Kb8 {[%clk 0:00:32.4]} 22. Rgb1
{[%clk 0:00:41.9]} 22... b6 {[%clk 0:00:29.3]} 23. Rc1 {[%clk 0:00:42.8]} 23...
Nxd4 {[%clk 0:00:26.4]} 24. Qc7+ {[%clk 0:00:40]} 24... Ka8 {[%clk 0:00:27.5]}
25. Ba6 {[%clk 0:00:31.4]} 25... Rgg8 {[%clk 0:00:24.6]} 26. Rd2 {[%clk
0:00:24.9]} 26... Qd7 {[%clk 0:00:17.4]} 27. Bb7# {[%clk 0:00:15.6]} 1-0

[Event "*** Titled Tuesday 3|2 Blitz"]
[Site "Chess.com"]
[Date "2015.05.05"]
[Round "2"]
[White "dabee"]
[Black "hellokostya"]
[Result "1-0"]
[WhiteElo "2366"]
[BlackElo "2257"]
[TimeControl "180+2"]
[EndTime "11:21:38 PDT"]
[Termination "dabee won by resignation"]

1. d4 {[%clk 0:03:00.1]} 1... Nf6 {[%clk 0:03:00.7]} 2. Bg5 {[%clk 0:03:01]}
2... d5 {[%clk 0:03:00.5]} 3. e3 {[%clk 0:03:01.3]} 3... e6 {[%clk 0:03:00.4]}
4. Nf3 {[%clk 0:03:01.1]} 4... c5 {[%clk 0:03:00.6]} 5. c3 {[%clk 0:03:00.8]}
5... h6 {[%clk 0:03:01]} 6. Bf4 {[%clk 0:03:00.6]} 6... Nc6 {[%clk 0:03:01.2]}
7. Nbd2 {[%clk 0:03:00.4]} 7... Bd7 {[%clk 0:03:00.2]} 8. Bd3 {[%clk 0:03:01]}
8... Be7 {[%clk 0:03:00.5]} 9. Ne5 {[%clk 0:02:58.9]} 9... Qb6 {[%clk
0:02:49.1]} 10. Rb1 {[%clk 0:02:57.1]} 10... a6 {[%clk 0:02:37.9]} 11. a3 {[%clk
0:02:54.2]} 11... cxd4 {[%clk 0:02:29.8]} 12. exd4 {[%clk 0:02:53.9]} 12... Na5
{[%clk 0:02:27.8]} 13. Qe2 {[%clk 0:02:46.6]} 13... Bb5 {[%clk 0:02:23.1]} 14.
Bxb5+ {[%clk 0:02:46.3]} 14... Qxb5 {[%clk 0:02:23.7]} 15. Qxb5+ {[%clk
0:02:40.7]} 15... axb5 {[%clk 0:02:25.6]} 16. Ke2 {[%clk 0:02:36.6]} 16... Nc4
{[%clk 0:02:25.7]} 17. Nb3 {[%clk 0:02:33.6]} 17... O-O {[%clk 0:02:22.8]} 18.
f3 {[%clk 0:02:21.5]} 18... Rfc8 {[%clk 0:02:23]} 19. Bd2 {[%clk 0:02:15.4]}
19... Bd6 {[%clk 0:02:14.9]} 20. Nd3 {[%clk 0:02:14]} 20... Nd7 {[%clk
0:02:13.8]} 21. h4 {[%clk 0:02:03.3]} 21... f6 {[%clk 0:02:13.5]} 22. Rhd1
{[%clk 0:01:56.4]} 22... Kf7 {[%clk 0:02:14.1]} 23. Bf4 {[%clk 0:01:53.9]} 23...
e5 {[%clk 0:02:12.7]} 24. dxe5 {[%clk 0:01:49.7]} 24... fxe5 {[%clk 0:02:14.6]}
25. Bg3 {[%clk 0:01:44.2]} 25... Re8 {[%clk 0:02:04.6]} 26. Nf2 {[%clk
0:01:42.5]} 26... Nf6 {[%clk 0:01:48.5]} 27. Nd2 {[%clk 0:01:41.3]} 27... e4
{[%clk 0:01:37.8]} 28. Bxd6 {[%clk 0:01:25.9]} 28... Nxd6 {[%clk 0:01:38.4]} 29.
fxe4 {[%clk 0:01:23.5]} 29... dxe4 {[%clk 0:01:37.3]} 30. Nf1 {[%clk 0:01:23.5]}
30... Nf5 {[%clk 0:01:36.7]} 31. Ne3 {[%clk 0:01:11.7]} 31... Nxh4 {[%clk
0:01:37.8]} 32. Rh1 {[%clk 0:01:06.4]} 32... Ng6 {[%clk 0:01:38.5]} 33. Rbd1
{[%clk 0:01:01.2]} 33... Nf4+ {[%clk 0:01:37.9]} 34. Kf1 {[%clk 0:01:00.2]}
34... Rad8 {[%clk 0:01:38.1]} 35. Rxd8 {[%clk 0:00:49.1]} 35... Rxd8 {[%clk
0:01:40]} 36. Rh4 {[%clk 0:00:49.8]} 36... g5 {[%clk 0:01:21.4]} 37. Rxh6 {[%clk
0:00:49.4]} 37... Rd2 {[%clk 0:01:22.9]} 38. Rxf6+ {[%clk 0:00:49.7]} 38... Kxf6
{[%clk 0:01:20.8]} 39. Nxe4+ {[%clk 0:00:50.8]} 39... Ke5 {[%clk 0:01:18.4]} 40.
Nxd2 {[%clk 0:00:52.7]} 40... Nd3 {[%clk 0:01:19.7]} 41. b4 {[%clk 0:00:51.9]}
41... Kf4 {[%clk 0:01:20.1]} 42. Ke2 {[%clk 0:00:52.3]} 42... Nc1+ {[%clk
0:01:19.7]} 43. Kd1 {[%clk 0:00:53.4]} 43... Na2 {[%clk 0:01:18.4]} 44. Nd5+
{[%clk 0:00:53.9]} 44... Ke5 {[%clk 0:01:19.7]} 45. Nc7 {[%clk 0:00:54.6]} 45...
Nxc3+ {[%clk 0:01:20.3]} 46. Kc2 {[%clk 0:00:55.9]} 46... Ne2 {[%clk 0:01:17.3]}
47. Nxb5 {[%clk 0:00:55.2]} 47... g4 {[%clk 0:01:19.2]} 48. Nc3 {[%clk
0:00:52.4]} 48... Nd4+ {[%clk 0:01:18.2]} 49. Kd3 {[%clk 0:00:52.5]} 49... Ne6
{[%clk 0:01:19.1]} 50. g3 {[%clk 0:00:52.4]} 1-0

[Event "*** Titled Tuesday 3|2 Blitz"]
[Site "Chess.com"]
[Date "2015.05.05"]
[Round "2"]
[White "Palacios-LLera"]
[Black "igorkovalenko"]
[Result "0-1"]
[WhiteElo "2103"]
[BlackElo "2494"]
[TimeControl "180+2"]
[EndTime "11:22:11 PDT"]
[Termination "igorkovalenko won by resignation"]

1. d4 {[%clk 0:03:01.9]} 1... Nf6 {[%clk 0:03:00.9]} 2. Nf3 {[%clk 0:03:02.8]}
2... g6 {[%clk 0:03:01.7]} 3. c3 {[%clk 0:03:04.2]} 3... Bg7 {[%clk 0:03:03.2]}
4. Bg5 {[%clk 0:03:05.9]} 4... O-O {[%clk 0:03:04.8]} 5. Nbd2 {[%clk 0:03:07.2]}
5... d5 {[%clk 0:03:06.3]} 6. e3 {[%clk 0:03:08.6]} 6... Nbd7 {[%clk 0:03:07.3]}
7. b4 {[%clk 0:03:09.4]} 7... Re8 {[%clk 0:03:07.6]} 8. Bh4 {[%clk 0:03:07.6]}
8... e5 {[%clk 0:03:08.2]} 9. Bg3 {[%clk 0:03:08.9]} 9... e4 {[%clk 0:03:09]}
10. Ne5 {[%clk 0:03:10.2]} 10... Nh5 {[%clk 0:03:07.8]} 11. Nxd7 {[%clk
0:03:09.4]} 11... Bxd7 {[%clk 0:03:09.4]} 12. Be2 {[%clk 0:03:08.5]} 12... Nxg3
{[%clk 0:03:10.4]} 13. hxg3 {[%clk 0:03:09.9]} 13... b5 {[%clk 0:03:02.7]} 14.
Nb3 {[%clk 0:03:08.5]} 14... c6 {[%clk 0:03:03]} 15. Nc5 {[%clk 0:03:06.2]}
15... a6 {[%clk 0:02:57.8]} 16. a4 {[%clk 0:03:06.6]} 16... Bf5 {[%clk
0:02:33.4]} 17. Ra3 {[%clk 0:03:02]} 17... Bf8 {[%clk 0:02:33.7]} 18. Qa1 {[%clk
0:02:39.4]} 18... Bxc5 {[%clk 0:02:30.9]} 19. dxc5 {[%clk 0:02:38.9]} 19... Rc8
{[%clk 0:02:28]} 20. axb5 {[%clk 0:02:38.5]} 20... axb5 {[%clk 0:02:29.9]} 21.
O-O {[%clk 0:02:23.8]} 21... h5 {[%clk 0:02:27]} 22. Qd1 {[%clk 0:02:23.5]}
22... Ra8 {[%clk 0:02:26.4]} 23. Qa1 {[%clk 0:02:24.2]} 23... Rxa3 {[%clk
0:02:23.9]} 24. Qxa3 {[%clk 0:02:25.3]} 24... Qf6 {[%clk 0:02:16.8]} 25. Ra1
{[%clk 0:02:22.8]} 25... Bg4 {[%clk 0:02:13.4]} 26. Bf1 {[%clk 0:02:18.9]} 26...
Kg7 {[%clk 0:02:12.7]} 27. Qc1 {[%clk 0:02:19.8]} 27... h4 {[%clk 0:02:03.5]}
28. Qd2 {[%clk 0:02:12.1]} 28... hxg3 {[%clk 0:02:04.1]} 29. fxg3 {[%clk
0:02:11.2]} 29... Qe5 {[%clk 0:02:03.7]} 30. Qd4 {[%clk 0:02:11.8]} 30... Qxd4
{[%clk 0:02:05]} 31. cxd4 {[%clk 0:02:13]} 31... Re6 {[%clk 0:01:59.1]} 32. Ra2
{[%clk 0:02:10.3]} 32... Rf6 {[%clk 0:01:57.7]} 33. Be2 {[%clk 0:02:08.7]} 33...
Bxe2 {[%clk 0:01:58.6]} 34. Rxe2 {[%clk 0:02:08.5]} 34... Kh6 {[%clk 0:01:59.2]}
35. Ra2 {[%clk 0:01:49.3]} 35... Kg5 {[%clk 0:01:59.5]} 36. Ra6 {[%clk
0:01:45.3]} 36... Kg4 {[%clk 0:02:00.4]} 37. Kh2 {[%clk 0:01:44]} 37... g5
{[%clk 0:02:01.6]} 38. Rb6 {[%clk 0:01:43.8]} 38... Rh6+ {[%clk 0:02:02.2]} 39.
Kg1 {[%clk 0:01:44.3]} 39... Kxg3 {[%clk 0:02:03.8]} 40. Rb7 {[%clk 0:01:45.7]}
40... f5 {[%clk 0:02:05]} 41. Rg7 {[%clk 0:01:45]} 41... Kg4 {[%clk 0:02:04.7]}
42. Kf2 {[%clk 0:01:42.4]} 42... Rf6 {[%clk 0:01:51.6]} 43. g3 {[%clk
0:01:39.3]} 43... Rh6 {[%clk 0:01:40.7]} 44. Kg2 {[%clk 0:01:40.3]} 44... Rh8
{[%clk 0:01:41.8]} 45. Rg6 {[%clk 0:01:39.5]} 45... Rc8 {[%clk 0:01:40.7]} 46.
Rh6 {[%clk 0:01:37.2]} 46... Rc7 {[%clk 0:01:41.3]} 47. Rg6 {[%clk 0:01:37.8]}
47... Rc8 {[%clk 0:01:42.9]} 48. Rh6 {[%clk 0:01:37.3]} 48... Ra8 {[%clk
0:01:44.5]} 49. Rxc6 {[%clk 0:01:35.2]} 49... Ra2+ {[%clk 0:01:46]} 50. Kf1
{[%clk 0:01:36.4]} 50... Kf3 {[%clk 0:01:46.8]} 51. Kg1 {[%clk 0:01:36.8]} 51...
Kxg3 {[%clk 0:01:48.1]} 52. Kf1 {[%clk 0:01:37.9]} 52... Kf3 {[%clk 0:01:49.7]}
53. Kg1 {[%clk 0:01:39.4]} 53... Kxe3 {[%clk 0:01:51.3]} 54. Rg6 {[%clk
0:01:36.4]} 54... Kxd4 {[%clk 0:01:52.4]} 55. Rxg5 {[%clk 0:01:37.1]} 55... f4
{[%clk 0:01:54]} 56. c6 {[%clk 0:01:36.1]} 56... Rc2 {[%clk 0:01:54.6]} 57. Rg6
{[%clk 0:01:37.3]} 57... f3 {[%clk 0:01:55.8]} 58. Rf6 {[%clk 0:01:37.5]} 58...
Ke3 {[%clk 0:01:57.1]} 59. Rf5 {[%clk 0:01:35.8]} 59... d4 {[%clk 0:01:58.4]}
60. Rc5 {[%clk 0:01:36.7]} 60... Rxc5 {[%clk 0:01:59.2]} 61. bxc5 {[%clk
0:01:37.7]} 61... Ke2 {[%clk 0:01:58.9]} 62. c7 {[%clk 0:01:37.9]} 62... f2+
{[%clk 0:02:00.4]} 63. Kh2 {[%clk 0:01:39.2]} 63... f1=Q {[%clk 0:02:01.3]} 64.
c8=Q {[%clk 0:01:40.3]} 64... Qf4+ {[%clk 0:01:58.1]} 65. Kg2 {[%clk 0:01:34.7]}
65... d3 {[%clk 0:01:57.6]} 66. Qa6 {[%clk 0:01:29.2]} 66... Qg5+ {[%clk
0:01:56.5]} 67. Kh2 {[%clk 0:01:28.6]} 67... Qxc5 {[%clk 0:01:57.8]} 68. Qg6
{[%clk 0:01:21.9]} 68... Qf2+ {[%clk 0:01:57.6]} 69. Kh1 {[%clk 0:01:21.7]}
69... Qf3+ {[%clk 0:01:58.8]} 70. Kh2 {[%clk 0:01:21.8]} 70... d2 {[%clk
0:01:59.5]} 71. Qg1 {[%clk 0:01:11]} 71... Qf2+ {[%clk 0:01:59.8]} 0-1

[Event "*** Titled Tuesday 3|2 Blitz"]
[Site "Chess.com"]
[Date "2015.05.05"]
[Round "2"]
[White "chessloveyou"]
[Black "MFBerna"]
[Result "1-0"]
[WhiteElo "2097"]
[BlackElo "1891"]
[TimeControl "180+2"]
[EndTime "11:22:49 PDT"]
[Termination "chessloveyou won by resignation"]

1. Nf3 {[%clk 0:03:01.9]} 1... d6 {[%clk 0:02:32.7]} 2. d4 {[%clk 0:03:03.8]}
2... Nf6 {[%clk 0:02:32.9]} 3. c4 {[%clk 0:03:05.2]} 3... g6 {[%clk 0:02:33.7]}
4. g3 {[%clk 0:03:06.7]} 4... Bg7 {[%clk 0:02:34]} 5. Bg2 {[%clk 0:03:08.6]}
5... O-O {[%clk 0:02:35]} 6. O-O {[%clk 0:03:10.5]} 6... Nbd7 {[%clk 0:02:35.7]}
7. Nc3 {[%clk 0:03:12]} 7... e5 {[%clk 0:02:36.4]} 8. dxe5 {[%clk 0:03:10.2]}
8... dxe5 {[%clk 0:02:34.1]} 9. Nd2 {[%clk 0:03:09.5]} 9... c6 {[%clk
0:02:34.2]} 10. b3 {[%clk 0:03:10.3]} 10... Qc7 {[%clk 0:02:28.6]} 11. Bb2
{[%clk 0:03:10.7]} 11... Re8 {[%clk 0:02:25.3]} 12. Nde4 {[%clk 0:03:10.7]}
12... Nxe4 {[%clk 0:02:25.5]} 13. Nxe4 {[%clk 0:03:12.6]} 13... Bf8 {[%clk
0:02:19.3]} 14. Qd2 {[%clk 0:03:12.1]} 14... f5 {[%clk 0:02:17.2]} 15. Ng5
{[%clk 0:02:59.3]} 15... Nf6 {[%clk 0:02:07.6]} 16. Rad1 {[%clk 0:02:53.5]}
16... h6 {[%clk 0:02:02.8]} 17. Nf3 {[%clk 0:02:52.6]} 17... Ne4 {[%clk
0:02:02.1]} 18. Qc2 {[%clk 0:02:50.9]} 18... Be6 {[%clk 0:02:02.3]} 19. Nh4
{[%clk 0:02:45.7]} 19... Bf7 {[%clk 0:01:52.5]} 20. Bxe4 {[%clk 0:02:35.2]}
20... fxe4 {[%clk 0:01:54.5]} 21. Qxe4 {[%clk 0:02:37.1]} 21... Kh7 {[%clk
0:01:53]} 22. Rd3 {[%clk 0:02:31.9]} 22... Bg7 {[%clk 0:01:51.8]} 23. Rfd1
{[%clk 0:02:32.5]} 23... Rad8 {[%clk 0:01:30.7]} 24. Bc3 {[%clk 0:02:25.8]}
24... Rxd3 {[%clk 0:01:12.8]} 25. Rxd3 {[%clk 0:02:27.7]} 25... Rd8 {[%clk
0:00:59.5]} 26. Nf3 {[%clk 0:02:18.3]} 26... Rxd3 {[%clk 0:00:55.7]} 27. exd3
{[%clk 0:02:16.1]} 27... Be6 {[%clk 0:00:49.2]} 28. Bxe5 {[%clk 0:02:14.2]}
28... Bxe5 {[%clk 0:00:36.5]} 29. Qxe5 {[%clk 0:02:16.1]} 29... Qxe5 {[%clk
0:00:35.2]} 30. Nxe5 {[%clk 0:02:16.7]} 30... c5 {[%clk 0:00:33.4]} 31. f3
{[%clk 0:02:15.3]} 31... Kg7 {[%clk 0:00:26.9]} 32. Kf2 {[%clk 0:02:16.1]} 32...
Kf6 {[%clk 0:00:27.5]} 33. f4 {[%clk 0:02:12.4]} 33... g5 {[%clk 0:00:24.2]} 34.
Ke3 {[%clk 0:02:13.3]} 34... Kf5 {[%clk 0:00:19.8]} 35. g4+ {[%clk 0:01:56.4]}
35... Kf6 {[%clk 0:00:20.1]} 36. h3 {[%clk 0:01:57.7]} 36... a5 {[%clk
0:00:14.5]} 37. Ke4 {[%clk 0:01:53.6]} 37... Bg8 {[%clk 0:00:10.9]} 38. f5
{[%clk 0:01:47.2]} 38... h5 {[%clk 0:00:09.1]} 39. Nf3 {[%clk 0:01:43.5]} 39...
hxg4 {[%clk 0:00:11.1]} 40. hxg4 {[%clk 0:01:45.4]} 40... Bf7 {[%clk 0:00:10.5]}
41. d4 {[%clk 0:01:45.9]} 41... Be8 {[%clk 0:00:12.2]} 42. d5 {[%clk 0:01:46.6]}
42... Bd7 {[%clk 0:00:12.6]} 43. Ne5 {[%clk 0:01:43.2]} 43... Be8 {[%clk
0:00:14.5]} 44. Nd3 {[%clk 0:01:43.9]} 44... b6 {[%clk 0:00:14.4]} 45. Ne5
{[%clk 0:01:43.2]} 45... a4 {[%clk 0:00:14.8]} 46. Nd3 {[%clk 0:01:34.2]} 46...
a3 {[%clk 0:00:13]} 47. Ne1 {[%clk 0:01:35.1]} 47... b5 {[%clk 0:00:12.3]} 48.
Nc2 {[%clk 0:01:33.3]} 48... b4 {[%clk 0:00:13.1]} 49. Ne1 {[%clk 0:01:34.1]}
49... Bd7 {[%clk 0:00:12.9]} 50. Nd3 {[%clk 0:01:34.6]} 50... Bxf5+ {[%clk
0:00:07.3]} 51. gxf5 {[%clk 0:01:34.9]} 51... g4 {[%clk 0:00:08.1]} 52. Nxc5
{[%clk 0:01:34.1]} 52... g3 {[%clk 0:00:09.6]} 53. Kf3 {[%clk 0:01:35.2]} 53...
Kxf5 {[%clk 0:00:10.1]} 54. Kxg3 {[%clk 0:01:36.1]} 54... Ke5 {[%clk 0:00:10.7]}
55. Kf3 {[%clk 0:01:35.9]} 1-0

[Event "*** Titled Tuesday 3|2 Blitz"]
[Site "Chess.com"]
[Date "2015.05.05"]
[Round "2"]
[White "Hikaru"]
[Black "zmaj23"]
[Result "1-0"]
[WhiteElo "2828"]
[BlackElo "2437"]
[TimeControl "180+2"]
[EndTime "11:22:51 PDT"]
[Termination "Hikaru won by resignation"]

1. d4 {[%clk 0:03:01.9]} 1... Nf6 {[%clk 0:02:59.5]} 2. Nf3 {[%clk 0:03:03.8]}
2... e6 {[%clk 0:03:00.7]} 3. Nc3 {[%clk 0:03:04.4]} 3... c5 {[%clk 0:03:00.8]}
4. e4 {[%clk 0:03:04.4]} 4... cxd4 {[%clk 0:02:57.4]} 5. Nxd4 {[%clk 0:03:06.3]}
5... Nc6 {[%clk 0:02:52.4]} 6. Be3 {[%clk 0:03:05.5]} 6... Bb4 {[%clk
0:02:49.9]} 7. Nxc6 {[%clk 0:03:06.2]} 7... bxc6 {[%clk 0:02:47.3]} 8. Qd3
{[%clk 0:02:49.4]} 8... Qa5 {[%clk 0:02:43.1]} 9. Bd2 {[%clk 0:02:47.3]} 9... d5
{[%clk 0:02:34.9]} 10. e5 {[%clk 0:02:48.5]} 10... Nd7 {[%clk 0:02:33.2]} 11. f4
{[%clk 0:02:49.5]} 11... c5 {[%clk 0:02:29.1]} 12. a3 {[%clk 0:02:49]} 12...
Bxc3 {[%clk 0:02:27]} 13. Bxc3 {[%clk 0:02:49]} 13... Qc7 {[%clk 0:02:23.8]} 14.
Qg3 {[%clk 0:02:49.5]} 14... g6 {[%clk 0:02:19.3]} 15. b4 {[%clk 0:02:45.9]}
15... Rb8 {[%clk 0:02:05.1]} 16. Be2 {[%clk 0:02:43.7]} 16... Qc6 {[%clk
0:02:01.7]} 17. O-O {[%clk 0:02:43.4]} 17... Ba6 {[%clk 0:02:01.6]} 18. Bxa6
{[%clk 0:02:42.6]} 18... Qxa6 {[%clk 0:02:01.7]} 19. bxc5 {[%clk 0:02:44.5]}
19... Nxc5 {[%clk 0:01:57.7]} 20. Bb4 {[%clk 0:02:45.5]} 20... Rc8 {[%clk
0:01:45.9]} 21. Kh1 {[%clk 0:02:43.7]} 21... Qc4 {[%clk 0:01:41.6]} 22. Rf3
{[%clk 0:02:39.6]} 22... O-O {[%clk 0:01:26.3]} 23. Qh4 {[%clk 0:02:40.2]} 23...
Rfe8 {[%clk 0:01:23.1]} 24. Rc3 {[%clk 0:02:31]} 24... Qd4 {[%clk 0:01:19.9]}
25. Rf1 {[%clk 0:02:18.3]} 25... Ne4 {[%clk 0:01:18.4]} 26. Rd3 {[%clk
0:02:19.4]} 26... Qb2 {[%clk 0:01:12.4]} 27. c3 {[%clk 0:02:08.3]} 27... Qe2
{[%clk 0:01:07.7]} 28. Rdd1 {[%clk 0:02:08.9]} 28... Nxc3 {[%clk 0:01:05.3]} 29.
Rde1 {[%clk 0:02:10.3]} 29... Qc4 {[%clk 0:00:59.3]} 30. Be7 {[%clk 0:02:10.4]}
30... Ne4 {[%clk 0:00:56.6]} 31. Bf6 {[%clk 0:02:11.6]} 31... Qc5 {[%clk
0:00:53.5]} 32. Rf3 {[%clk 0:02:10.8]} 32... h5 {[%clk 0:00:43.1]} 33. g4 {[%clk
0:02:09.5]} 33... Nxf6 {[%clk 0:00:25.2]} 34. exf6 {[%clk 0:02:11.4]} 34... hxg4
{[%clk 0:00:22.5]} 35. Qxg4 {[%clk 0:02:08.9]} 35... Qd4 {[%clk 0:00:23.5]} 36.
Qg5 {[%clk 0:02:04.1]} 36... Rc3 {[%clk 0:00:22]} 37. Rff1 {[%clk 0:02:05.2]}
37... Rec8 {[%clk 0:00:12]} 38. Rxe6 {[%clk 0:01:59.8]} 38... Rh3 {[%clk
0:00:11.3]} 39. Qg2 {[%clk 0:01:49.6]} 39... Rh4 {[%clk 0:00:05.5]} 40. Qg3
{[%clk 0:01:39.3]} 40... Rh5 {[%clk 0:00:03]} 41. f5 {[%clk 0:01:02.9]} 41...
Rxf5 {[%clk 0:00:03.1]} 42. Rfe1 {[%clk 0:00:40.4]} 42... Rxf6 {[%clk
0:00:04.2]} 43. Re7 {[%clk 0:00:41.1]} 43... Kg7 {[%clk 0:00:05.1]} 44. Qe5
{[%clk 0:00:38.9]} 44... Qxe5 {[%clk 0:00:04.2]} 45. R7xe5 {[%clk 0:00:40.8]}
45... Rc1 {[%clk 0:00:05.8]} 46. Rxc1 {[%clk 0:00:41.2]} 1-0